[Event "Baku Open 2024"]
[Site "Baku"]
[Date "2024.06.29"]
[Round "1.17"]
[White "Aslanov, Umid"]
[Black "Ahmadzada, Ahmad"]
[Result "0-1"]
[ECO "C54"]
[WhiteElo "2216"]
[BlackElo "2481"]
[Annotator "TA"]
[PlyCount "60"]
[EventDate "2024.06.29"]
[EventType "swiss"]
[EventCountry "AZE"]
[SourceTitle "playchess.com"]
[Source "ChessBase"]
[SourceQuality "1"]
[TimeControl "5400+30"]

{[%evp 12,60,20,24,37,5,16,5,12,20,8,19,17,5,0,0,0,0,0,0,0,-20,-10,-7,-17,-14,0,0,0,0,0,0,0,-26,-47,-37,-35,-76,-74,-71,-68,-350,-350,-875,-829,-877,-862,-1060,-1045,-984,-832]} 1. e4 {[%emt 0:00:08]} e5 {[%emt 0:00:12]} 2. Nf3 {[%emt 0:00:05]} Nc6 {[%emt 0:00:05]} 3. Bc4 {[%emt 0:00:04]} Nf6 {[%emt 0:00:15]} 4. d3 {[%emt 0:00:05]} Bc5 {[%emt 0:00:12]} 5. c3 {[%emt 0:00:08]} d6 {[%emt 0:00:12]} 6. O-O {[%emt 0:00:10]} Bb6 {[%emt 0:00:10]} 7. a4 {[%emt 0:00:47]} O-O {[%emt 0:00:32]} 8. h3 {[%emt 0:00:14]} a5 {[%emt 0:01:12]} 9. Re1 {[%emt 0:00:38]} Ne7 {[%emt 0:01:56] The position is equal.} 10. d4 {[%emt 0:10:24]} Ng6 {[%emt 0:04:47]} 11. Bf1 {[%emt 0:08:02]} d5 {[%emt 0:14:34]} 12. dxe5 {[%emt 0:31:21]} Nxe4 {[%emt 0:01:10]} (12... dxe4 {seems wilder.} 13. exf6 Qxd1 14. Rxd1 exf3 15. fxg7 Re8) 13. Be3 {[%emt 0:00:06]} Bxe3 {[%emt 0:08:30]} 14. Rxe3 {[%emt 0:00:21]} Nc5 {[%emt 0:01:49]} 15. Nbd2 {[%emt 0:16:55]} Bd7 {[%emt 0:04:02]} 16. Bb5 {[%emt 0:10:31]} c6 {[%emt 0:08:08]} 17. Bf1 {[%emt 0:03:12]} Qb6 {[%emt 0:03:36]} 18. Qc2 {[%emt 0:02:46]} f6 {[%emt 0:04:54]} 19. exf6 {[%emt 0:03:26]} Rxf6 {[%emt 0:00:20]} 20. c4 {[%emt 0:01:31]} Raf8 {[%emt 0:03:30]} 21. cxd5 {[%emt 0:02:14]} cxd5 {[%emt 0:00:37]} 22. h4 {[%emt 0:02:30]} Kh8 {[%emt 0:07:48]} 23. Rc1 {[%emt 0:01:39] [#]} Qd8 $1 {[%emt 0:03:14]} 24. h5 {[%emt 0:00:59] [#]} (24. Qxc5 Rc6 $17 (24... Bxa4 $2 25. Qc7 $18) (24... Bxa4 $2 25. Qc7 $18)) (24. Rce1 b6) 24... Nf4 {[%emt 0:01:27]} 25. Ng5 {[%emt 0:01:10][%csl Gg5][%cal Rc2h7]} ({Much worse is} 25. Qxc5 Rc6 (25... Nxh5 $2 26. Qe7 $18) (25... Nxh5 $2 26. Qxd5 Nf4 27. Qxb7 $18)) 25... Ncd3 {[%emt 0:05:30]} 26. Nxh7 $2 {[%emt 0:03:10][%mdl 8192] [#] This move loses the game for White.} ({White should try} 26. Rxd3 $15 Rc6 27. Nf7+ Rxf7 28. Rc3) 26... Nb4 $1 $19 {[%emt 0:00:57]} ({Worse is} 26... Nxc1 27. Nxf8 Rxf8 28. Qxc1 $16) 27. Nxf6 $2 {[%emt 0:00:43]} ({Of course not} 27. Qb1 Bf5 28. Nxf8 Bxb1 29. Ng6+ Bxg6 (29... Nxg6 $2 30. Rxb1 Nh4 31. Be2 $19) 30. hxg6 Rf8 $19 (30... Rxg6 $2 31. g3 $19) (30... Nxg6 $2 31. Rd1 $19)) (27. Qc7 Kxh7 28. Qxd8 Rxd8 29. Rc7) 27... Nxc2 {[%emt 0:00:10] Black is clearly winning.} 28. Nxd7 {[%emt 0:00:02]} Nxe3 {[%emt 0:00:14]} 29. fxe3 {[%emt 0:00:40]} Qxd7 {[%emt 0:00:32]} 30. exf4 {[%emt 0:00:04]} Qxa4 {[%emt 0:00:08] Weighted Error Value: White=0.61/Black=0.02 (flawless) .  Loses game:     	White=1     	---        Mistake:       	White=1     	---        Inaccurate:     	White=3     	---        OK:         	White=11    	Black=9      Best:        	---       	Black=1      Strong:       	---       	Black=2} 0-1

[Event "Baku Open 2024"]
[Site "Baku"]
[Date "2024.06.29"]
[Round "1.18"]
[White "Tsaruk, Maksim"]
[Black "Bizhigitov, Zhangir"]
[Result "1-0"]
[ECO "C65"]
[WhiteElo "2480"]
[BlackElo "2212"]
[Annotator "TA"]
[PlyCount "95"]
[EventDate "2024.06.29"]
[EventType "swiss"]
[EventCountry "AZE"]
[SourceTitle "playchess.com"]
[Source "ChessBase"]
[SourceQuality "1"]
[TimeControl "5400+30"]

{[%evp 9,94,16,30,-45,36,42,182,181,240,170,199,134,147,132,141,135,195,184,359,344,366,361,358,366,441,453,586,578,576,568,614,588,604,599,641,624,769,757,921,729,785,760,720,696,793,815,817,817,870,837,1056,870,1043,1031,974,947,967,786,976,960,1218,1137,1103,1041,1333,1245,1719,5493,29987,29988,29990,29991,29991,29990,29991,29992,29993,29994,29994,29995,29995,29996,29996,29997,29997,29998,29999]} 1. e4 {[%emt 0:00:30]} e5 {[%emt 0:03:11]} 2. Nf3 {[%emt 0:00:00]} Nc6 {[%emt 1:28:19]} 3. Bb5 {[%emt 1:31:30]} Nf6 {[%emt 0:00:00]} 4. d4 {[%emt 0:00:00]} exd4 {[%emt 0:00:00]} 5. O-O {[%emt 0:00:00]} Bc5 {[%emt 0:00:00]} 6. Bg5 {[%emt 0:00:00]} ({White should try} 6. c3 $11) 6... O-O {[%emt 0:00:00]} (6... h6 $15 7. Bxf6 Qxf6) 7. e5 {[%emt 0:00:00]} (7. Bxc6 $5 dxc6 8. e5 $17) 7... Nxe5 {[%emt 0:00:00] Black cannot hold the game after this.} 8. Nxe5 $18 {[%emt 0:00:00] White is clearly better.} h6 {[%emt 0:00:00]} (8... d6 $142) 9. Bh4 {[%emt 0:00:00]} d6 {[%emt 0:00:00] [#]} 10. Nd3 {[%emt 0:00:00]} ({Better is} 10. Nf3 $1 $18) 10... Bb6 $16 {[%emt 0:00:00]} 11. Re1 {[%emt 0:00:00]} c6 {[%emt 0:00:00] [#]} 12. Ba4 {[%emt 0:00:00]} Bd7 {[%emt 0:00:00]} (12... g5 $16) 13. Nd2 $18 {[%emt 0:00:00][%cal Bb1d2,Bd2e4,Be4d6,Bd6f7][%mdl 32] Black must now prevent Ne4.} Re8 {[%emt 0:00:00]} (13... g5) 14. Rxe8+ {[%emt 0:00:00]} Qxe8 {[%emt 0:00:00]} 15. Bxf6 {[%emt 0:00:00]} gxf6 {[%emt 0:06:30]} 16. Qh5 {[%emt 0:06:30]} Kh7 {[%emt 0:00:00]} 17. Re1 {[%emt 0:00:00] Wards off d5} Qg8 {[%emt 0:00:00]} 18. Ne4 {[%emt 0:00:00]} Qg7 {[%emt 0:00:00]} 19. Nxd6 {[%emt 0:00:00][%cal Oe1e7]} Bg4 {[%emt 0:00:00]} 20. Qxf7 {[%emt 0:00:00]} Qxf7 {[%emt 0:02:30]} 21. Nxf7 {[%emt 0:00:00] A dynamic duo of knights.} Rg8 {[%emt 0:00:00]} 22. Bb3 {[%emt 0:00:00]} Bh3 {[%emt 0:00:00]} 23. Nf4 {[%emt 0:00:00]} Bg4 {[%emt 0:00:00]} 24. Nxh6 {[%emt 0:00:00]} Rg5 {[%emt 0:00:00]} 25. Nxg4 {[%emt 0:00:00]} Rxg4 {[%emt 0:02:30]} 26. g3 {[%emt 0:00:00]} Ba5 {[%emt 0:00:00]} 27. Re7+ {[%emt 0:00:00]} Kh6 {[%emt 0:00:00]} 28. h4 {[%emt 0:00:00]} Bd8 {[%emt 0:01:30]} 29. Rxb7 {[%emt 0:06:30]} Bb6 {[%emt 0:00:00]} 30. Rb8 {[%emt 0:00:00] aiming for Rh8+.} Rg7 {[%emt 0:00:00]} 31. Be6 {[%emt 0:00:00] Bf5 would kill now.} Bc7 {[%emt 0:01:30]} 32. Rh8+ {[%emt 0:01:30]} Rh7 {[%emt 0:00:00]} 33. Rxh7+ {[%emt 0:00:00]} Kxh7 {[%emt 0:00:00]} 34. Bd7 {[%emt 0:00:00]} c5 {[%emt 0:00:00]} 35. Bf5+ {[%emt 0:00:00]} Kh8 {[%emt 0:00:00]} 36. h5 {[%emt 0:00:00]} Bd6 {[%emt 0:00:00]} 37. h6 {[%emt 0:00:00] Threatens to win with Ne6.} a5 {[%emt 0:00:00][%cal Ba7a5,Ba5a4][%mdl 32]} 38. Ne6 {[%emt 0:00:00] Threatening mate with Nd8.} a4 {[%emt 0:00:00]} 39. Nd8 {[%emt 0:00:00] White mates.} c4 {[%emt 0:00:00]} 40. Nf7+ {[%emt 0:00:00]} Kg8 {[%emt 0:00:00]} 41. Nxd6 {[%emt 0:00:00]} c3 {[%emt 0:00:00]} 42. bxc3 {[%emt 0:00:00]} dxc3 {[%emt 0:00:00]} 43. h7+ {[%emt 0:00:00]} Kh8 {[%emt 0:00:00]} 44. Nf7+ {[%emt 0:00:00]} Kg7 {[%emt 0:00:00]} 45. h8=Q+ {[%emt 0:00:00]} Kxf7 {[%emt 0:00:00]} 46. Qh7+ {[%emt 0:00:00]} Ke8 {[%emt 0:07:30]} 47. Be6 {[%emt 0:07:30]} Kd8 {[%emt 0:00:00]} 48. Qd7# {[%emt 0:00:00] Weighted Error Value: White=0.17 (very precise) /Black=0.61.  Mistake:       	White=1     	Black=5      OK:         	White=9     	Black=1      Best:        	White=1     	Black=1} 1-0

[Event "Baku Open 2024"]
[Site "Baku"]
[Date "2024.06.29"]
[Round "1.19"]
[White "Vrashank Chouhan"]
[Black "Assaubayeva, Bibisara"]
[Result "0-1"]
[ECO "E71"]
[WhiteElo "2209"]
[BlackElo "2472"]
[Annotator "TA"]
[PlyCount "74"]
[EventDate "2024.06.29"]
[EventType "swiss"]
[EventCountry "AZE"]
[SourceTitle "playchess.com"]
[Source "ChessBase"]
[SourceQuality "1"]
[TimeControl "5400+30"]

{[%evp 10,74,40,27,33,42,72,57,73,70,90,53,45,47,83,30,30,15,12,13,18,2,24,22,15,23,25,-28,0,0,0,-53,67,61,51,61,66,32,31,16,8,18,19,21,15,0,33,-74,20,0,0,0,9,27,23,0,136,-22,0,-373,-346,-539,-507,-2485,-2345,-29996,-29997]} 1. d4 {[%emt 0:00:11]} Nf6 {[%emt 0:00:15]} 2. c4 {[%emt 0:00:30]} g6 {[%emt 0:00:03]} 3. Nc3 {[%emt 0:00:06]} Bg7 {[%emt 0:00:05]} 4. e4 {[%emt 0:00:06]} d6 {[%emt 0:00:13]} 5. h3 {[%emt 0:00:41]} O-O {[%emt 0:01:00]} 6. Be3 {[%emt 0:00:06]} a5 {[%emt 0:00:40]} 7. Nf3 {[%emt 0:04:27]} a4 {[%emt 0:03:42][%cal Oc7c5]} 8. a3 {[%emt 0:05:36]} (8. Nxa4 $6 Nxe4 9. Bd3 Bf5 $15) 8... e5 {[%emt 0:05:41] White is slightly better.} 9. d5 {[%emt 0:01:16]} c6 {[%emt 0:03:33]} 10. Nd2 {[%emt 0:07:53]} (10. Nxa4 Qa5+ 11. Nc3 Nxe4 $17) 10... Qa5 {[%emt 0:08:24]} 11. g4 {[%emt 0:07:39]} Bd7 {[%emt 0:03:31]} 12. Bd3 {[%emt 0:11:43]} (12. Be2 $16) 12... Na6 $11 {[%emt 0:06:52]} 13. O-O {[%emt 0:16:36]} Nc5 {[%emt 0:01:14]} 14. Bc2 {[%emt 0:00:27]} cxd5 {[%emt 0:04:14]} 15. cxd5 {[%emt 0:01:27]} Qa6 {[%emt 0:05:51]} 16. b4 {[%emt 0:06:51]} axb3 {[%emt 0:01:54]} 17. Nxb3 {[%emt 0:03:21]} Na4 {[%emt 0:03:58]} 18. Na2 {[%emt 0:03:06]} (18. Nxa4 $142 Bxa4 19. Bd3) 18... Rac8 {[%emt 0:04:51]} 19. Bd3 {[%emt 0:07:10]} Qa8 {[%emt 0:02:17]} 20. Qd2 {[%emt 0:01:20] Dodges Nb2} (20. Qe2 $11) 20... Nc5 {[%emt 0:01:16]} (20... Nxe4 $15 21. Bxe4 f5) 21. Nxc5 $14 {[%emt 0:02:06]} dxc5 {[%emt 0:00:09]} 22. Nc3 {[%emt 0:00:05]} Ne8 {[%emt 0:04:48]} 23. Rfb1 {[%emt 0:04:15]} f5 {[%emt 0:05:02]} 24. f3 {[%emt 0:00:39]} (24. gxf5 {keeps more tension.} gxf5 25. exf5 e4 26. Nxe4 b5 27. Nxc5 Bxf5 28. Ne6) 24... Nd6 {[%emt 0:04:59]} 25. Rb6 {[%emt 0:05:02]} Qb8 {[%emt 0:00:50]} 26. a4 {[%emt 0:00:32]} Qc7 {[%emt 0:00:32]} 27. Rab1 {[%emt 0:00:26]} Ra8 {[%emt 0:06:58]} 28. Bg5 {[%emt 0:03:51]} (28. Qd1 $14 {keeps the upper hand.}) 28... Rf7 {[%emt 0:00:55]} ({Black should play} 28... c4 $17 29. Bc2 (29. Be7 Bb5 $11) 29... fxg4 30. fxg4 Rf3) 29. exf5 {[%emt 0:02:03]} (29. Be2 {with more complications.} c4 30. Be3 h5 31. gxf5 gxf5 32. Kh1) 29... gxf5 {[%emt 0:00:39]} 30. gxf5 {[%emt 0:00:04]} Bxf5 {[%emt 0:01:38]} 31. Bxf5 {[%emt 0:03:05]} Rxf5 {[%emt 0:00:34]} 32. Qg2 {[%emt 0:00:09] Ne4 would now be deadly.} (32. Ne4 Nc4 33. d6 Qf7 $11 (33... Qxb6 $2 34. Qd5+ Rf7 35. Rxb6 $18)) 32... Ra6 {[%emt 0:05:55] [#]} (32... c4 $1 $11 {keeps the balance.}) 33. R6b2 $2 {[%emt 0:03:19]} ({Better is} 33. Rxa6 $1 $16 bxa6 34. Ne4) 33... Qf7 {[%emt 0:05:46]} (33... Rf7 $5) 34. Kh1 $2 {[%emt 0:00:48][%mdl 8192]} (34. Rb6 $1 $11 {and White stays safe.} Qh5 (34... Rxf3 $2 35. Rxa6 bxa6 36. Rb8+ Ne8 37. Rxe8+ Qxe8 38. Qxf3 $18) 35. Be7 Rxb6 36. Rxb6) 34... Rxf3 $19 {[%emt 0:01:02]} 35. Nb5 {[%emt 0:00:32]} (35. Bh6 $142 Rxc3 36. Bxg7 Qxg7 37. Rg1) 35... Ne4 {[%emt 0:00:31]} (35... Qxd5 36. Nxd6 Rxd6 37. Rd2 Rxh3+ 38. Kg1 Qxg2+ 39. Rxg2 $15) 36. Bh4 {[%emt 0:00:29]} (36. d6 $142 Qf5 (36... Nxd6 37. Nxd6 Rxd6 38. Rxb7 $11) (36... Rxa4 37. d7 $11) 37. Rb3 Nxg5 38. Rxf3 Qxb1+ (38... Nxf3 $2 39. Rd1 $19) 39. Rf1) 36... Rg6 {[%emt 0:00:19]} ({Weaker is} 36... Rxa4 37. Nd4 Rxd4 (37... exd4 $2 {loses.} 38. Rxb7 $18) 38. Rxb7 $17) 37. Qh2 {[%emt 0:00:15]} Rf1+ {[%emt 0:00:11] Weighted Error Value: White=0.82/Black=0.21 (precise) .  Loses game:     	White=1     	---        Mistake:       	White=7     	Black=3      Inaccurate:     	White=3     	Black=4      OK:         	White=7     	Black=11     Best:        	White=2     	Black=3} 0-1

[Event "Baku Open 2024"]
[Site "Baku"]
[Date "2024.06.29"]
[Round "1.20"]
[White "Babazada, Khazar"]
[Black "Javadov, Habil"]
[Result "0-1"]
[ECO "C00"]
[WhiteElo "2468"]
[BlackElo "2195"]
[Annotator "TA"]
[PlyCount "82"]
[EventDate "2024.06.29"]
[EventType "swiss"]
[EventCountry "AZE"]
[SourceTitle "playchess.com"]
[Source "ChessBase"]
[SourceQuality "1"]
[TimeControl "5400+30"]

{[%evp 23,82,-28,-39,-87,-100,-95,-63,-45,-12,-20,0,-97,-54,-137,-172,-139,-152,-139,-152,-151,-147,-165,-158,-338,-367,-366,-314,-337,-314,-324,-320,-337,-332,-438,-342,-353,-341,-425,-407,-383,-367,-344,-322,-289,-287,-804,-904,-860,-897,-828,-839,-868,-868,-999,-967,-975,-917,-996,-994,-963,-944]} 1. Nf3 {[%emt 0:00:46]} e6 {[%emt 0:00:13]} 2. g3 {[%emt 0:00:16]} d5 {[%emt 0:00:15]} 3. Bg2 {[%emt 0:00:15]} Nf6 {[%emt 0:00:09]} 4. O-O {[%emt 0:00:58]} Be7 {[%emt 0:00:10]} 5. d3 {[%emt 0:00:19]} c5 {[%emt 0:00:14]} 6. Nbd2 {[%emt 0:00:35]} Nc6 {[%emt 0:00:11]} 7. e4 {[%emt 0:00:15]} b6 {[%emt 0:00:40]} 8. Re1 {[%emt 0:00:40]} Bb7 {[%emt 0:00:52]} 9. e5 {[%emt 0:00:54]} Nd7 {[%emt 0:00:07]} 10. Nf1 {[%emt 0:00:07]} Qc7 {[%emt 0:02:43]} 11. Bf4 {[%emt 0:02:46]} h6 {[%emt 0:02:23]} 12. h4 {[%emt 0:00:47]} O-O-O {[%emt 0:05:18]} 13. Qd2 {[%emt 0:13:16]} (13. N1h2 $15) 13... Rdg8 $17 {[%emt 0:03:12]} 14. h5 {[%emt 0:15:01]} g5 {[%emt 0:02:50]} 15. hxg6 {[%emt 0:00:35] Black is slightly better.} Rxg6 {[%emt 0:00:01]} (15... fxg6 $5 16. Bxh6 g5 17. Bxg5 Ndxe5 18. Bxe7 Nxf3+ 19. Bxf3 Qxe7 $11) 16. Ne3 {[%emt 0:05:32][%cal Oe3d5] Dodges h5} Nd4 {[%emt 0:07:25]} (16... Ndxe5 $2 17. Nxe5 (17. Nxd5 Nxf3+ 18. Bxf3 Qd7 $11) 17... Nxe5 18. Nxd5 Bxd5 19. Bxe5 $18) 17. Nh2 {[%emt 0:02:02]} (17. Nxd4 $11 cxd4 18. Nd1) 17... Qd8 {[%emt 0:08:37] Black is more active.} (17... Nxe5 $2 18. Neg4 f6 (18... Rxg4 $2 19. Bxe5 Bd6 20. Nxg4 $18) 19. Nxe5 fxe5 20. Bxe5 $18) 18. Qd1 {[%emt 0:14:03]} (18. c3 $15 Nc6 19. d4) 18... h5 {[%emt 0:04:52]} 19. c3 {[%emt 0:02:14]} Nc6 {[%emt 0:00:12][%cal Oh5h4]} 20. d4 {[%emt 0:00:06]} h4 {[%emt 0:02:05]} 21. Neg4 {[%emt 0:01:36]} Bg5 {[%emt 0:12:01]} 22. Qd2 {[%emt 0:02:27]} Qg8 {[%emt 0:02:26]} 23. dxc5 $2 {[%emt 0:03:59] White does not recover from this.} (23. Bxg5 $17 {might work better.} Rxg5 24. Qf4) 23... hxg3 $19 {[%emt 0:04:48]} (23... bxc5 24. Qe2 (24. Bxg5 $2 Rxg5 25. Qf4 Qg7 $19)) (23... Nxc5 24. Bxg5 Rxg5 25. Nf6 $19) 24. fxg3 {[%emt 0:00:05]} Bxf4 {[%emt 0:07:07]} ({Don't do} 24... bxc5 25. Rad1 $19) 25. Qxf4 {[%emt 0:00:14] [#]} Rxh2 $1 {[%emt 0:00:18][%mdl 512]} 26. Nxh2 {[%emt 0:02:59]} Rxg3 {[%emt 0:00:09]} ({Worse is} 26... Nxc5 27. Re3 $14) 27. Re2 {[%emt 0:04:38]} Ncxe5 {[%emt 0:02:04] Threatens to win with ...d4.} ({But not} 27... bxc5 28. Kh1 $19) 28. Kh1 {[%emt 0:00:55]} bxc5 {[%emt 0:06:01]} 29. Rg1 {[%emt 0:00:49] [#]} Nd3 {[%emt 0:02:10] A dynamic duo of knights.} 30. Qd6 {[%emt 0:04:19]} e5 {[%emt 0:03:09]} 31. Rf1 {[%emt 0:01:02]} Rg6 {[%emt 0:05:45]} 32. Qe7 {[%emt 0:00:06]} Nf4 {[%emt 0:00:34]} 33. Rxf4 {[%emt 0:03:56]} exf4 {[%emt 0:00:41]} 34. Nf3 $2 {[%emt 0:00:04] [#]} (34. Qe8+ Qxe8 35. Rxe8+ Kc7 36. Re2) 34... d4 $1 {[%emt 0:00:56][%cal Og6g2] White must now prevent ...Rxg2! Black is clearly winning.} 35. Qe8+ {[%emt 0:02:41]} Qxe8 {[%emt 0:00:34]} 36. Rxe8+ {[%emt 0:00:02]} Kc7 {[%emt 0:00:22] And now ...Rg3 would win.} 37. cxd4 {[%emt 0:00:36]} cxd4 {[%emt 0:00:13]} 38. Re1 {[%emt 0:01:57]} Rg3 {[%emt 0:00:55]} 39. Rc1+ {[%emt 0:01:02]} Kb6 {[%emt 0:17:18]} 40. Ne1 {[%emt 0:00:05]} f3 {[%emt 0:00:00]} 41. Bxf3 {[%emt 0:00:10]} Rxf3 {[%emt 0:00:00] Weighted Error Value: White=0.48/Black=0.14 (very precise) .  Loses game:     	White=1     	---        Mistake:       	White=3     	---        Inaccurate:     	White=1     	Black=3      OK:         	White=8     	Black=9      Best:        	White=2     	Black=1      Brilliant:      	---       	Black=2} 0-1

[Event "Baku Open 2024"]
[Site "Baku"]
[Date "2024.06.30"]
[Round "2.1"]
[White "Talibov, Shiroghlan"]
[Black "Mamedov, Rauf"]
[Result "0-1"]
[ECO "B15"]
[WhiteElo "2361"]
[BlackElo "2651"]
[Annotator "TA"]
[PlyCount "160"]
[EventDate "2024.06.29"]
[EventType "swiss"]
[EventCountry "AZE"]
[SourceTitle "playchess.com"]
[Source "ChessBase"]
[SourceQuality "1"]
[TimeControl "5400+30"]

{[%evp 50,160,-31,-71,-42,-29,-33,-79,-75,-75,-75,-75,-75,-75,-41,-39,-41,-29,-32,-70,-57,-75,-76,-125,0,-65,0,-71,-72,-71,-71,-71,-72,-75,-51,-51,-51,-51,-43,-51,-41,-66,-66,-66,-66,-66,-66,-59,-58,-58,-58,-58,-58,-60,-59,-59,-58,-58,-54,-67,-54,-54,-54,-64,-54,-66,-66,-66,-66,-66,-66,-66,-66,-67,-73,-75,-18,-18,0,-72,0,-20,0,0,0,0,0,0,0,0,0,-29972,-29952,-29945,-12773,-12247,-11908,-29957,-29956,-12850,-166,-166,-166,-29976,-29977,-29981,-29982,-29982,-29983,-29984,-29984,-29984,-29985]} 1. e4 {[%emt 0:00:01]} c6 {[%emt 0:00:06]} 2. d4 {[%emt 0:01:08]} d5 {[%emt 0:00:05]} 3. Nc3 {[%emt 0:02:12]} dxe4 {[%emt 0:00:10]} 4. Nxe4 {[%emt 0:00:04]} Nf6 {[%emt 0:00:05]} 5. Nxf6+ {[%emt 0:00:28]} exf6 {[%emt 0:00:06]} 6. Bc4 {[%emt 0:02:25]} Bd6 {[%emt 0:02:50]} 7. Qe2+ {[%emt 0:00:34]} Qe7 {[%emt 0:02:39]} 8. c3 {[%emt 0:02:33] B15: Caro-Kann: 3 Nc3: 3...g6 and 3...dxe4 4 Nxe4 Nf6 5 Nxf6+ exf6.} Bf5 {[%emt 0:05:23]} 9. Qxe7+ {[%emt 0:01:02]} Kxe7 {[%emt 0:02:47]} 10. Ne2 {[%emt 0:00:20]} b5 {[%emt 0:11:06]} 11. Bb3 {[%emt 0:00:09]} Nd7 {[%emt 0:00:15]} 12. O-O {[%emt 0:09:45]} Rhe8 {[%emt 0:06:41]} 13. a4 $146 {[%emt 0:05:56]} ({Predecessor:} 13. Re1 Kf8 14. Bf4 Bxf4 15. Nxf4 Rxe1+ 16. Rxe1 Nb6 17. f3 a5 18. g4 Bg6 19. Kf2 {½-½ Perpinya Rofes,L (2298)-Perez Manas,B (2271) Catalunya-chT Final 2022 (2.8)}) 13... a6 {[%emt 0:13:10]} 14. Ng3 {[%emt 0:17:59]} Be6 {[%emt 0:22:49]} 15. Re1 {[%emt 0:03:09]} g6 {[%emt 0:08:05]} 16. Bc2 {[%emt 0:05:01]} Kf8 {[%emt 0:02:33]} 17. Ne4 {[%emt 0:03:20]} Bc7 {[%emt 0:03:51]} 18. b3 {[%emt 0:07:52]} Kg7 {[%emt 0:01:54]} 19. Ba3 {[%emt 0:03:31]} Bf5 {[%emt 0:02:16]} 20. f3 {[%emt 0:01:24]} h5 {[%emt 0:01:55]} 21. g3 {[%emt 0:03:57]} bxa4 {[%emt 0:03:21]} 22. bxa4 {[%emt 0:00:55]} Ba5 {[%emt 0:00:03]} 23. Rab1 {[%emt 0:07:28]} Bxc3 {[%emt 0:02:37]} 24. Nxc3 {[%emt 0:00:34]} Bxc2 {[%emt 0:00:53]} 25. Rxe8 {[%emt 0:01:24]} Rxe8 {[%emt 0:00:03]} 26. Rb2 {[%emt 0:00:05]} Re1+ {[%emt 0:07:47]} 27. Kf2 {[%emt 0:00:48]} Ra1 {[%emt 0:00:00]} 28. Rxc2 {[%emt 0:07:18]} (28. Be7 $15 Bf5 (28... Bxa4 29. Rb7 $11) 29. h4) 28... Rxa3 $17 {[%emt 0:00:00]} 29. Ne4 {[%emt 0:01:54]} Rxa4 {[%emt 0:00:00]} 30. Rxc6 {[%emt 0:00:06]} Rxd4 {[%emt 0:00:00]} 31. Rxa6 {[%emt 0:00:01]} Ne5 {[%emt 0:00:08]} 32. Nxf6 {[%emt 0:05:36]} Rd2+ {[%emt 0:00:18]} 33. Ke3 {[%emt 0:00:01]} Rxh2 {[%emt 0:01:58]} 34. Kf4 {[%emt 0:00:09]} Re2 {[%emt 0:00:19]} 35. Rd6 {[%emt 0:02:38]} Nc4 {[%emt 0:00:22]} 36. Rc6 {[%emt 0:00:40]} Ne5 {[%emt 0:00:13]} (36... Ne3 $1 $17 {[%cal Re3g2]} 37. g4 Ng2+ 38. Kg3 h4+ 39. Kh3 Kh6) 37. Rd6 $15 {[%emt 0:06:33]} Nc4 {[%emt 0:00:07]} 38. Rc6 $1 {[%emt 0:00:00]} Ne3 {[%emt 0:00:57]} 39. g4 {[%emt 0:00:00]} Ng2+ {[%emt 0:01:12]} 40. Kg3 {[%emt 0:00:00]} h4+ {[%emt 0:00:10]} 41. Kh3 {[%emt 0:00:00]} Ne1 {[%emt 0:01:11]} (41... g5 $5 42. Nh5+ $8 Kf8 43. Rc8+ Ke7 44. Rc7+ Kd6 45. Rxf7 Ne3 $17) 42. Kxh4 {[%emt 0:00:00]} Nxf3+ {[%emt 0:00:04]} 43. Kg3 {[%emt 0:00:00]} Nd4 {[%emt 0:00:13]} 44. Rc4 {[%emt 0:00:28]} Ne6 {[%emt 0:00:25]} 45. Nd5 {[%emt 0:00:31]} Rd2 {[%emt 0:00:36]} 46. Nf4 {[%emt 0:00:37]} Ng5 {[%emt 0:00:04]} 47. Ra4 {[%emt 0:00:34]} Rd1 {[%emt 0:00:19]} 48. Kg2 {[%emt 0:00:54]} Rb1 {[%emt 0:00:13]} 49. Nd3 {[%emt 0:00:55]} Rb3 {[%emt 0:00:19]} 50. Nf2 {[%emt 0:00:19]} Kh6 {[%emt 0:01:14]} 51. Rf4 {[%emt 0:00:16]} Rb2 {[%emt 0:00:03]} 52. Ra4 {[%emt 0:00:40]} Ne6 {[%emt 0:00:12]} 53. Ra7 {[%emt 0:00:32]} Kg7 {[%emt 0:00:41]} 54. Ra4 {[%emt 0:00:08]} Kf6 {[%emt 0:00:05]} 55. Ra5 {[%emt 0:00:47]} Rc2 {[%emt 0:02:08]} 56. Rb5 {[%emt 0:00:36]} Ra2 {[%emt 0:00:06]} 57. Rb7 {[%emt 0:00:53]} Nc5 {[%emt 0:00:48]} 58. Rb6+ $1 {[%emt 0:00:06]} Ke5 {[%emt 0:00:25]} 59. Rb5 {[%emt 0:00:39]} Kd4 {[%emt 0:00:06]} 60. Kg3 {[%emt 0:00:36]} g5 {[%emt 0:01:04]} 61. Rb1 {[%emt 0:01:55]} Ra3+ {[%emt 0:00:24]} 62. Kg2 {[%emt 0:00:09]} Ne6 {[%emt 0:00:35]} (62... Ra4 $17) 63. Nh3 $11 {[%emt 0:00:25]} Ra2+ {[%emt 0:00:27]} 64. Kg3 {[%emt 0:00:05] [#]} (64. Kh1 $11) 64... Ra3+ {[%emt 0:00:02]} ({Black should play} 64... f6 $1 $17) 65. Kg2 $11 {[%emt 0:00:02]} Ke4 {[%emt 0:00:18]} 66. Rf1 {[%emt 0:00:55]} Nf4+ {[%emt 0:00:20]} 67. Nxf4 {[%emt 0:00:01]} gxf4 {[%emt 0:00:04]} 68. Re1+ {[%emt 0:01:29]} Re3 {[%emt 0:00:04]} 69. Ra1 {[%emt 0:00:29]} Re2+ {[%emt 0:00:12]} 70. Kf1 $2 {[%emt 0:00:52][%mdl 8192]} (70. Kh3 $11) 70... Kf3 {[%emt 0:00:15]} 71. Ra3+ {[%emt 0:00:26]} Re3 $1 {[%emt 0:00:06]} 72. Ra2 {[%emt 0:00:25]} Rb3 {[%emt 0:01:02]} (72... Kxg4 73. Ra7 $11) 73. Rf2+ {[%emt 0:00:12] [#]} Kg3 $1 {[%emt 0:00:04]} (73... Kxg4 74. Rg2+ Kf5 75. Rc2 $11) 74. Rg2+ {[%emt 0:00:31]} Kh4 $2 {[%emt 0:00:04]} (74... Kh3 {( -> ...Rf3+)} 75. Rd2 Kg3 (75... Kxg4 76. Ra2 $17) 76. Rg2+ Kh4) 75. Ra2 $19 {[%emt 0:00:46]} Rh3 {[%emt 0:00:09]} ({Resist} 75... Kxg4 76. Rg2+ Kf5 77. Rg7 $15) 76. Kg1 $2 {[%emt 0:00:44]} (76. Ra6 $19) 76... f3 {[%emt 0:01:05]} ({Weaker is} 76... Kxg4 77. Ra7 $11) 77. Ra7 {[%emt 0:00:32]} Kg3 {[%emt 0:00:10]} (77... Kxg4 78. Rxf7 Rh5 79. Rf8 $11) 78. Ra3 {[%emt 0:00:24]} Rh8 {[%emt 0:00:12]} ({And not} 78... Kxg4 79. Ra8 $11) 79. g5 {[%emt 0:00:23]} Rb8 {[%emt 0:00:12]} 80. Ra1 {[%emt 0:00:32]} Rb2 {[%emt 0:00:06]} 0-1